bitfinex/quotes_BTCUSD_20220731
["timestamp","ask_amount","ask_price","bid_price","bid_amount"]
[1659238273789,0.08811092,23735.0,23734.0,0.00555731]
[1659238274009,0.15526492,23735.0,23734.0,0.00555731]
[1659238274261,0.10526492,23735.0,23734.0,0.00555731]
[1659238275387,0.02626492,23735.0,23734.0,0.00555731]
[1659238275603,0.03811092,23735.0,23734.0,0.00555731]
[1659238275831,0.02626492,23735.0,23734.0,0.00555731]
[1659238276061,0.10526492,23735.0,23734.0,0.00555731]
[1659238276520,0.05,23734.0,23731.0,0.0011]
[1659238276767,0.12786078,23732.0,23731.0,0.0011]
[1659238276954,0.011846,23732.0,23731.0,0.0011]
[1659238277177,0.12786078,23732.0,23731.0,0.0011]
[1659238277633,0.4579157,23732.0,23731.0,0.0011]
[1659238277846,0.1541257,23732.0,23731.0,0.0011]
[1659238278100,0.2331257,23732.0,23731.0,0.0011]
[1659238279245,0.2331257,23732.0,23731.0,0.00142843]
[1659238280248,0.2331257,23732.0,23731.0,0.0011]
[1659238281830,0.4579157,23732.0,23731.0,0.0011]
[1659238282095,0.5369157,23732.0,23731.0,0.0011]
[1659238282535,0.2449717,23732.0,23731.0,0.0011]
[1659238283190,0.1541257,23732.0,23731.0,0.0011]
[1659238283417,0.18913454,23732.0,23731.0,0.0011]
[1659238283640,0.49292454,23732.0,23731.0,0.0011]
[1659238284123,0.26813454,23732.0,23731.0,0.0011]
[1659238284352,0.57192454,23732.0,23730.0,0.021064]
[1659238284516,0.26813454,23732.0,23730.0,0.021064]
[1659238285102,0.18913454,23732.0,23730.0,0.021064]
[1659238285317,0.18913454,23732.0,23730.0,0.010532]
[1659238285531,0.43165078,23731.0,23730.0,0.010532]
[1659238286208,0.4579157,23731.0,23730.0,0.010532]
[1659238287342,0.4579157,23731.0,23708.0,0.0011]
[1659238287343,0.1,23711.0,23708.0,0.0011]
[1659238287574,0.05,23718.0,23698.0,0.17009]
[1659238287575,0.17786078,23699.0,23698.0,0.14258118]
[1659238287903,0.12786078,23698.0,23691.0,0.28701632]
[1659238288133,0.3,23697.0,23693.0,0.010542]
[1659238288576,0.40725733,23696.0,23693.0,0.010542]
[1659238288791,0.35,23695.0,23690.0,0.005542]
[1659238289010,0.05,23693.0,23690.0,0.005542]
[1659238289233,0.05,23693.0,23685.0,4.26813055]
[1659238289234,0.40725733,23692.0,23685.0,4.26813055]
[1659238289463,0.40725733,23688.0,23685.0,4.26813055]
[1659238289697,0.443,23698.0,23685.0,4.67538788]
[1659238289698,0.47468,23697.0,23685.0,4.67538788]
[1659238289959,0.47468,23697.0,23685.0,4.18306974]
[1659238289960,0.40725733,23688.0,23685.0,4.18306974]
[1659238290191,0.12786078,23687.0,23686.0,0.30379]
[1659238290414,0.12786078,23682.0,23681.0,0.01240716]
[1659238290639,0.12786078,23682.0,23681.0,0.30379]
[1659238290854,0.12786078,23682.0,23681.0,0.34776542]
[1659238290855,0.40725733,23682.0,23681.0,0.34776542]
[1659238291072,0.443,23689.0,23682.0,0.40725733]
[1659238291278,0.07626839,23693.0,23682.0,0.40725733]
[1659238291720,0.2,23698.0,23684.0,0.40725733]
[1659238291721,0.02626492,23686.0,23684.0,0.40725733]
[1659238291968,0.02626492,23686.0,23685.0,0.30444]
[1659238292193,0.02626492,23686.0,23685.0,0.72434081]
[1659238292445,0.02626492,23686.0,23685.0,0.45160081]
[1659238292667,0.02626492,23686.0,23685.0,0.77434081]
[1659238292905,0.02626492,23686.0,23685.0,0.72434081]
[1659238293391,0.02626492,23686.0,23685.0,0.71169733]
[1659238293617,0.02626492,23686.0,23685.0,0.41990081]
[1659238293840,0.02626492,23686.0,23685.0,0.72434081]
[1659238294082,0.10526492,23686.0,23685.0,0.41990081]
[1659238294308,0.14027376,23686.0,23685.0,0.41990081]
[1659238294543,0.10526492,23686.0,23685.0,0.41990081]
[1659238294769,1.36719904,23686.0,23685.0,0.41990081]
[1659238295246,0.02626492,23686.0,23685.0,0.41990081]
[1659238295515,0.10052213,23704.0,23687.0,0.01264348]
[1659238295747,0.633,23706.0,23686.0,1.0]
[1659238295748,0.31467,23705.0,23694.0,0.05]
[1659238295980,0.31467,23705.0,23694.0,0.45725733]
[1659238295981,0.03167,23705.0,23694.0,0.45725733]
[1659238296201,0.30444,23704.0,23695.0,0.40725733]
[1659238296429,0.05,23702.0,23695.0,0.41990081]
[1659238296678,0.05,23702.0,23694.0,0.05]
[1659238296679,0.05,23700.0,23694.0,0.05]
[1659238296909,0.1,23695.0,23686.0,0.01264348]
[1659238297153,0.1,23695.0,23687.0,0.40725733]
[1659238297391,0.50725733,23695.0,23694.0,0.0001137]
[1659238297641,0.84670617,23695.0,23694.0,0.0001137]
[1659238297872,0.84670617,23695.0,23694.0,0.08714152]
[1659238297873,0.40444,23695.0,23694.0,0.08714152]
[1659238298103,0.079,23695.0,23694.0,0.50456081]
[1659238298327,0.079,23695.0,23694.0,0.71990081]
[1659238298567,0.11400884,23695.0,23694.0,0.40725733]
[1659238298821,0.41844884,23695.0,23694.0,0.40725733]
[1659238299054,0.41844884,23695.0,23690.0,0.00017362]
[1659238299320,0.01712,23694.0,23690.0,0.40743095]
[1659238299558,0.54087367,23698.0,23691.0,0.40725733]
[1659238299791,0.30444,23697.0,23691.0,0.40725733]
[1659238300028,0.079,23694.0,23691.0,0.40725733]
[1659238300266,0.079,23694.0,23687.0,0.40725733]
[1659238300480,0.09612,23694.0,23690.0,0.00017362]
[1659238300719,0.33613,23693.0,23690.0,0.00017362]
[1659238300951,0.75,23691.0,23690.0,0.00017362]
[1659238301179,0.11745568,23691.0,23690.0,0.00017362]
[1659238301438,0.11745568,23691.0,23687.0,0.40725733]
[1659238301702,0.10033568,23691.0,23690.0,0.00374034]
[1659238301942,0.66828301,23691.0,23690.0,0.00374034]
[1659238302170,0.68540301,23691.0,23690.0,0.00374034]
[1659238303410,0.60640301,23691.0,23682.0,0.40725733]
[1659238303636,0.71169733,23690.0,23682.0,0.40725733]
[1659238303875,0.05,23687.0,23686.0,9.724e-05]
[1659238304107,0.05033568,23687.0,23686.0,9.724e-05]
[1659238304617,0.05033568,23687.0,23686.0,0.08466]
[1659238304854,0.179,23691.0,23686.0,0.49191733]
[1659238305084,0.079,23691.0,23687.0,0.40725733]
[1659238305276,0.3,23697.0,23688.0,0.60444]
[1659238305536,0.30444,23696.0,23689.0,0.40725733]
[1659238305762,0.30444,23696.0,23688.0,0.4]
[1659238305763,0.42437733,23695.0,23688.0,0.40725733]
[1659238305993,0.05,23693.0,23688.0,0.40725733]
[1659238306207,0.05,23693.0,23687.0,0.40725733]
[1659238306208,0.06712,23693.0,23687.0,0.40725733]
[1659238306429,0.30444,23692.0,23687.0,0.40725733]
[1659238306654,0.06712,23693.0,23687.0,0.40725733]
[1659238307068,0.30444,23692.0,23687.0,0.40725733]
[1659238307290,0.05,23693.0,23688.0,0.3]
[1659238307291,0.06712,23693.0,23688.0,0.3]
[1659238307535,0.57255367,23698.0,23688.0,0.75725733]
[1659238307780,0.54087367,23698.0,23689.0,0.43894733]
[1659238308008,0.08,23693.0,23690.0,0.76780233]
[1659238308229,0.08,23693.0,23691.0,0.71169733]
[1659238308459,0.08,23693.0,23692.0,0.50725733]
[1659238308670,0.08,23693.0,23692.0,0.75725733]
[1659238308909,0.08,23693.0,23692.0,1.11169733]
[1659238309173,0.08,23693.0,23692.0,1.16169733]
[1659238309643,0.11500884,23693.0,23692.0,0.55725733]
[1659238309858,0.52937796,23698.0,23692.0,0.80725733]
[1659238310096,0.079,23693.0,23692.0,0.45]
[1659238310321,0.079,23693.0,23692.0,1.16169733]
[1659238310534,0.079,23693.0,23692.0,0.76169733]
[1659238310896,0.079,23693.0,23692.0,0.40725733]
[1659238311205,0.52937796,23698.0,23692.0,0.40725733]
[1659238311894,0.30444,23697.0,23692.0,0.40725733]
[1659238312142,0.01712,23696.0,23692.0,0.40725733]
[1659238312361,0.33944884,23695.0,23692.0,0.40725733]
[1659238312604,0.05,23696.0,23691.0,0.40725733]
[1659238312840,0.05,23696.0,23690.0,0.010545]
[1659238312841,0.30444,23695.0,23689.0,0.00011785]
[1659238313085,0.60444,23695.0,23690.0,0.40725733]
[1659238313315,0.01712,23694.0,23690.0,0.40725733]
[1659238313539,0.33944884,23693.0,23690.0,0.40725733]
[1659238313771,0.01712,23692.0,23690.0,0.40725733]
[1659238314000,0.30444,23691.0,23690.0,0.40725733]
[1659238314222,0.079,23694.0,23690.0,0.40725733]
[1659238314452,0.30444,23693.0,23690.0,0.40725733]
[1659238314722,0.03500884,23693.0,23690.0,0.40725733]
[1659238315640,0.03500884,23693.0,23687.0,0.40743097]
[1659238315858,0.03500884,23693.0,23687.0,0.45743097]
[1659238316102,0.08100884,23693.0,23688.0,0.3]
[1659238317010,0.08100884,23693.0,23687.0,0.41780533]
[1659238317283,0.08100884,23693.0,23688.0,0.3]
[1659238317519,0.08100884,23693.0,23688.0,0.06695095]
[1659238317752,0.08100884,23693.0,23688.0,0.36695095]
[1659238317984,0.12700884,23693.0,23688.0,0.36695095]
[1659238318202,0.12700884,23693.0,23690.0,0.06694517]
[1659238318440,0.092,23693.0,23690.0,0.4847485]
[1659238318668,0.092,23693.0,23691.0,0.3]
[1659238319099,0.092,23693.0,23691.0,0.310545]
[1659238319323,0.03500884,23693.0,23692.0,0.06693939]
[1659238319549,0.3,23696.0,23692.0,0.06693939]
[1659238319776,0.35444,23695.0,23692.0,0.06693939]
[1659238320034,0.079,23693.0,23692.0,0.06693939]
[1659238320265,0.079,23693.0,23692.0,0.47419672]
[1659238320499,0.079,23693.0,23692.0,0.77419672]
[1659238320761,0.079,23693.0,23692.0,0.82419672]
[1659238320987,0.079,23693.0,23692.0,1.17863672]
[1659238321197,0.52937796,23698.0,23692.0,0.77419672]
[1659238321419,0.52937796,23698.0,23694.0,0.010545]
[1659238321639,0.33944884,23697.0,23694.0,0.07747861]
[1659238321868,0.52937796,23698.0,23694.0,0.07747861]
[1659238322095,0.30444,23697.0,23694.0,0.07747861]
[1659238322390,0.01712,23696.0,23694.0,0.07747861]
[1659238322617,0.03500884,23695.0,23694.0,0.07747861]
[1659238322840,0.01712,23696.0,23694.0,0.07747861]
[1659238323069,0.30444,23697.0,23694.0,0.07747861]
[1659238323301,0.01712,23696.0,23694.0,0.07747861]
[1659238323525,0.30444,23695.0,23694.0,0.07747861]
[1659238324486,0.079,23696.0,23694.0,0.07747861]
[1659238324717,0.30444,23695.0,23694.0,0.07747861]
[1659238324943,0.079,23696.0,23694.0,0.07747861]
[1659238325161,0.30444,23695.0,23694.0,0.07747861]
[1659238325385,0.52937796,23698.0,23694.0,0.07747861]
[1659238325613,0.33944884,23697.0,23694.0,0.07747861]
[1659238325839,0.01712,23696.0,23694.0,0.07747861]
[1659238326065,0.129,23695.0,23694.0,0.07747861]
[1659238326354,0.079,23695.0,23694.0,0.07747861]
[1659238327483,0.079,23695.0,23694.0,0.06693361]
[1659238327484,0.38344,23695.0,23694.0,0.06693361]
[1659238327729,0.03500884,23695.0,23694.0,0.06693361]
[1659238327953,0.11400884,23695.0,23694.0,0.06693361]
[1659238328197,0.41844884,23695.0,23694.0,0.06693361]
[1659238328452,0.38344,23695.0,23694.0,0.06693361]
[1659238328893,0.41844884,23695.0,23694.0,0.06693361]
[1659238329121,0.38344,23695.0,23694.0,0.53516234]
[1659238329346,0.52937796,23698.0,23694.0,0.53516234]
[1659238329578,0.30444,23697.0,23695.0,0.010546]
[1659238329818,0.01712,23696.0,23695.0,0.010546]
[1659238330043,0.52937796,23698.0,23695.0,0.010546]
[1659238330334,0.30444,23697.0,23695.0,0.010546]
[1659238330587,0.01712,23696.0,23695.0,0.139656]
[1659238330833,0.52937796,23698.0,23695.0,1.57312433]
[1659238331061,0.52937796,23698.0,23697.0,1.0]
[1659238331309,0.52937796,23698.0,23697.0,2.44340733]
[1659238331310,0.46697071,23698.0,23697.0,2.44340733]
[1659238331542,0.46697071,23698.0,23697.0,1.55605081]
[1659238331773,0.46697071,23698.0,23697.0,1.25605081]
[1659238331999,0.46697071,23698.0,23697.0,1.21169733]
[1659238332000,0.54597071,23698.0,23697.0,1.21169733]
[1659238332239,0.54597071,23698.0,23697.0,1.11169733]
[1659238332717,0.54597071,23698.0,23697.0,1.14340733]
[1659238332956,0.51377171,23698.0,23697.0,1.14340733]
[1659238333430,0.43477171,23698.0,23697.0,1.15605081]
[1659238333653,0.43477171,23698.0,23697.0,0.75589481]
[1659238333881,0.42977171,23698.0,23697.0,0.75589481]
[1659238334131,0.50877171,23698.0,23697.0,0.75589481]
[1659238334593,0.50877171,23698.0,23697.0,0.80589481]
[1659238335053,0.09740874,23704.0,23703.0,0.05]
[1659238335054,0.05031691,23704.0,23703.0,0.05]
[1659238335293,0.05266063,23707.0,23706.0,0.1]
[1659238335524,0.02233016,23707.0,23706.0,1.22129133]
[1659238335764,0.02233016,23707.0,23706.0,1.87557533]
[1659238336040,0.02233016,23707.0,23706.0,1.84351881]
[1659238336276,0.02233016,23707.0,23706.0,1.83087533]
[1659238336505,0.02233016,23707.0,23706.0,1.07659133]
[1659238336748,0.02233016,23707.0,23706.0,0.247778]
[1659238337234,0.02233016,23707.0,23706.0,0.552062]
[1659238337467,0.057339,23707.0,23706.0,0.210778]
[1659238337694,0.057339,23707.0,23706.0,0.515062]
[1659238337974,0.02233016,23707.0,23706.0,0.565778]
[1659238338681,0.02233016,23707.0,23706.0,0.265778]
[1659238339344,0.02233016,23707.0,23706.0,0.210778]
[1659238340044,0.02233016,23707.0,23706.0,0.271778]
[1659238341194,0.02233016,23707.0,23706.0,0.210778]
[1659238341918,0.02233016,23707.0,23706.0,0.06]
[1659238341919,0.05678016,23707.0,23706.0,0.06]
[1659238342133,0.76832149,23707.0,23706.0,0.06]
[1659238342356,0.80002149,23707.0,23706.0,0.06]
[1659238342579,0.76832149,23707.0,23706.0,0.06]
[1659238343316,0.76832149,23707.0,23703.0,0.010544]
[1659238343317,0.80002149,23707.0,23703.0,0.010544]
[1659238343542,0.091743,23706.0,23703.0,0.010544]
[1659238343778,0.1,23704.0,23703.0,0.010544]
[1659238344005,0.19505184,23704.0,23703.0,0.088544]
[1659238344236,0.13500884,23704.0,23703.0,0.088544]
[1659238345361,0.1,23704.0,23703.0,0.010544]
[1659238345636,0.33929284,23705.0,23703.0,0.010544]
[1659238345858,0.060043,23704.0,23703.0,0.010544]
[1659238346073,0.079,23704.0,23703.0,0.010544]
[1659238346528,0.383284,23704.0,23703.0,0.010544]
[1659238346971,0.079,23704.0,23703.0,0.314828]
[1659238347194,0.079,23704.0,23703.0,0.614828]
[1659238347469,0.41958749,23707.0,23703.0,0.410544]
[1659238347658,0.03500884,23706.0,23704.0,0.3]
[1659238347905,0.41355713,23707.0,23704.0,0.521384]
[1659238348196,0.0062998,23707.0,23705.0,0.421635]
[1659238348424,0.0062998,23707.0,23706.0,0.604284]
[1659238348648,0.0062998,23707.0,23706.0,0.66692748]
[1659238348866,0.0062998,23707.0,23706.0,0.71692748]
[1659238349624,0.0062998,23707.0,23706.0,0.41264348]
[1659238349848,0.0062998,23707.0,23706.0,0.71692748]
[1659238350067,0.0062998,23707.0,23706.0,0.72192748]
[1659238350068,0.0712998,23707.0,23706.0,0.72192748]
[1659238350285,0.0712998,23707.0,23706.0,0.41764348]
[1659238350507,0.0712998,23707.0,23706.0,0.72192748]
[1659238351236,0.0062998,23707.0,23706.0,0.41264348]
[1659238351447,0.07181103,23709.0,23708.0,0.7]
[1659238351674,0.07181103,23709.0,23708.0,1.41154133]
[1659238351902,0.07181103,23709.0,23708.0,1.9722946]
[1659238352125,0.07181103,23709.0,23708.0,1.43493808]
[1659238353317,0.07181103,23709.0,23708.0,1.46663808]
[1659238353989,0.07181103,23709.0,23708.0,1.51463808]
[1659238354206,0.07181103,23709.0,23708.0,1.1019946]
[1659238354431,0.07181103,23709.0,23708.0,0.7660106]
[1659238354655,0.07181103,23709.0,23708.0,1.0202946]
[1659238355145,0.07181103,23709.0,23708.0,1.02284313]
[1659238355359,0.07181103,23709.0,23708.0,0.6180106]
[1659238355360,0.10681987,23709.0,23708.0,0.6180106]
[1659238355588,0.10681987,23709.0,23708.0,0.40725733]
[1659238356110,0.07181103,23709.0,23708.0,0.48625733]
[1659238356321,0.10681987,23709.0,23708.0,0.48625733]
[1659238356543,0.07181103,23709.0,23708.0,0.48625733]
[1659238356774,0.07181103,23709.0,23708.0,0.79054133]
[1659238356997,0.07181103,23709.0,23708.0,0.80318481]
[1659238357445,0.07181103,23709.0,23708.0,1.20318481]
[1659238357666,0.07181103,23709.0,23708.0,1.12418481]
[1659238357895,0.07181103,23709.0,23708.0,1.78065641]
[1659238357896,0.0463464,23709.0,23708.0,1.78065641]
[1659238358128,0.05804079,23711.0,23710.0,0.95]
[1659238358382,0.0875947,23714.0,23713.0,1.05]
[1659238358624,0.0875947,23714.0,23713.0,2.77523633]
[1659238358832,0.0875947,23714.0,23713.0,2.88787981]
[1659238359089,0.0875947,23714.0,23713.0,1.88787981]
[1659238359334,0.0875947,23714.0,23713.0,1.79354633]
[1659238360002,0.0875947,23714.0,23713.0,1.85754633]
[1659238361379,0.0875947,23714.0,23713.0,1.79354633]
[1659238362048,0.0875947,23714.0,23713.0,1.22020973]
[1659238362303,0.0875947,23714.0,23713.0,1.85221473]
[1659238362545,0.0875947,23714.0,23713.0,1.84721473]
[1659238363255,0.0875947,23714.0,23713.0,1.80121473]
[1659238365560,0.4777455,23725.0,23715.0,0.05]
[1659238365783,0.4777455,23725.0,23718.0,0.632083]
[1659238365784,0.88500283,23725.0,23718.0,0.632083]
[1659238366016,0.304284,23724.0,23719.0,0.3]
[1659238366254,0.88500283,23725.0,23720.0,0.210694]
[1659238366255,0.060043,23723.0,23720.0,0.210694]
[1659238366464,0.304284,23722.0,23720.0,0.210694]
[1659238366716,0.03500884,23722.0,23720.0,0.210694]
[1659238366940,0.304284,23721.0,23720.0,0.210694]
[1659238367164,0.354284,23721.0,23720.0,0.210694]
[1659238367392,0.05,23721.0,23720.0,0.210694]
[1659238367620,0.88500283,23725.0,23720.0,0.210694]
[1659238367844,0.304284,23724.0,23720.0,0.210694]
[1659238368068,0.079,23721.0,23720.0,0.210694]
[1659238368755,0.079,23721.0,23720.0,0.260694]
[1659238368971,0.079,23721.0,23720.0,0.310694]
[1659238369195,0.079,23721.0,23720.0,0.610694]
[1659238369416,0.03164,23724.0,23720.0,0.610694]
[1659238369645,0.304284,23723.0,23721.0,0.3]
[1659238369870,0.43889733,23725.0,23721.0,0.3222545]
[1659238370103,0.079,23724.0,23721.0,0.3722545]
[1659238370336,0.079,23724.0,23721.0,0.3]
[1659238370581,0.079,23724.0,23720.0,0.732054]
[1659238370808,0.03500884,23723.0,23720.0,0.732054]
[1659238371026,0.03500884,23723.0,23720.0,0.632054]
[1659238371518,0.03165,23722.0,23720.0,0.632054]
[1659238371966,0.11400884,23723.0,23720.0,0.632054]
[1659238372215,0.079,23723.0,23720.0,0.632054]
[1659238372487,0.03500884,23722.0,23720.0,0.632054]
[1659238373166,0.06665884,23722.0,23720.0,0.632054]
[1659238373388,0.03500884,23722.0,23720.0,0.632054]
[1659238373602,0.33929284,23722.0,23720.0,0.632054]
[1659238373851,0.03165,23725.0,23720.0,0.632054]
[1659238374067,0.079,23722.0,23720.0,0.632054]
[1659238375238,0.11400884,23722.0,23720.0,0.210694]
[1659238375459,0.03500884,23722.0,23720.0,0.210694]
[1659238375694,0.060043,23724.0,23720.0,0.210694]
[1659238375900,0.03165,23725.0,23720.0,0.210694]
[1659238375901,0.335934,23725.0,23720.0,0.210694]
[1659238376115,0.079,23722.0,23720.0,0.210694]
[1659238376396,0.079,23722.0,23720.0,0.20016104]
[1659238377287,0.060043,23724.0,23720.0,0.20016104]
[1659238377935,0.335934,23725.0,23720.0,0.20016104]
[1659238378156,0.139043,23724.0,23720.0,0.20016104]
[1659238378444,0.03500884,23723.0,23720.0,0.20016104]
[1659238379063,0.139043,23724.0,23720.0,0.20016104]
[1659238379302,0.43988733,23726.0,23720.0,0.20016104]
[1659238379303,0.304284,23723.0,23720.0,0.20016104]
[1659238379500,0.43988733,23726.0,23720.0,0.20016104]
[1659238379648,0.03467316,23723.0,23720.0,0.20016104]
[1659238379875,0.060043,23724.0,23720.0,0.20016104]
[1659238380071,0.383284,23723.0,23720.0,0.20016104]
[1659238380271,0.060043,23722.0,23720.0,0.20016104]
[1659238380479,0.079,23723.0,23720.0,0.20016104]
[1659238380908,0.05,23722.0,23720.0,0.20016104]
[1659238381109,0.079,23723.0,23720.0,0.20016104]
[1659238381403,0.05,23722.0,23720.0,0.20016104]
[1659238381594,0.304284,23725.0,23720.0,0.20016104]
[1659238381846,0.060043,23724.0,23720.0,0.20016104]
[1659238382049,0.33929284,23723.0,23720.0,0.20016104]
[1659238382287,0.055078,23722.0,23720.0,0.20016104]
[1659238382508,0.079,23722.0,23720.0,0.20016104]
[1659238382929,0.079,23722.0,23720.0,0.33016104]
[1659238383128,0.11400884,23722.0,23720.0,0.33016104]
[1659238383684,0.33906284,23722.0,23720.0,0.33016104]
[1659238383886,0.03500884,23722.0,23720.0,0.33016104]
[1659238384089,0.11400884,23722.0,23720.0,0.33016104]
[1659238384529,0.11400884,23722.0,23720.0,0.31516104]
[1659238385132,0.079,23722.0,23720.0,0.31516104]
[1659238385353,0.304054,23724.0,23720.0,0.31516104]
[1659238385577,0.03500884,23723.0,23720.0,0.31516104]
[1659238385788,0.05,23722.0,23720.0,0.31516104]
[1659238386040,0.055308,23725.0,23720.0,0.31516104]
[1659238386209,0.304054,23724.0,23720.0,0.31516104]
[1659238386448,0.055308,23723.0,23720.0,0.31516104]
[1659238386679,0.304054,23722.0,23720.0,0.31516104]
[1659238386900,0.40823733,23726.0,23721.0,0.304054]
[1659238387105,0.304054,23725.0,23720.0,0.31516104]
[1659238387317,0.134308,23724.0,23720.0,0.31516104]
[1659238387549,0.304054,23723.0,23720.0,0.31516104]
[1659238387781,0.05,23722.0,23720.0,0.31516104]
[1659238388066,0.158,23724.0,23720.0,0.31516104]
[1659238388300,0.304054,23723.0,23720.0,0.31490387]
[1659238388515,0.158,23724.0,23720.0,0.31490387]
[1659238388743,0.304054,23725.0,23720.0,0.36490387]
[1659238388949,0.055308,23724.0,23720.0,0.36490387]
[1659238389162,0.40823733,23726.0,23720.0,0.31490387]
[1659238389163,0.03500884,23723.0,23720.0,0.31490387]
[1659238389384,0.40823733,23726.0,23720.0,0.31490387]
[1659238389588,0.304054,23725.0,23720.0,0.31490387]
[1659238389873,0.055308,23724.0,23720.0,0.31490387]
[1659238390055,0.304054,23725.0,23720.0,0.31490387]
[1659238390274,0.055308,23724.0,23720.0,0.31490387]
[1659238390504,0.354054,23723.0,23720.0,0.31490387]
[1659238390723,0.03500884,23723.0,23720.0,0.31490387]
[1659238391169,0.304054,23724.0,23720.0,0.31490387]
[1659238391387,0.055308,23723.0,23720.0,0.31490387]
[1659238391610,0.40823733,23726.0,23720.0,0.33715837]
[1659238391611,0.304054,23725.0,23720.0,0.33715837]
[1659238391863,0.055308,23724.0,23720.0,0.33715837]
[1659238392097,0.383054,23723.0,23720.0,0.43715837]
[1659238392315,0.055308,23722.0,23720.0,0.43715837]
[1659238392534,0.079,23723.0,23721.0,0.3]
[1659238392757,0.079,23723.0,23722.0,0.0222545]
[1659238392985,0.079,23723.0,23721.0,0.3]
[1659238393228,0.40823733,23726.0,23721.0,0.3222545]
[1659238393438,0.304054,23725.0,23722.0,0.260678]
[1659238393688,0.055308,23724.0,23722.0,0.260678]
[1659238393883,0.304054,23723.0,23722.0,0.210678]
[1659238394110,0.03500884,23724.0,23722.0,0.210678]
[1659238394414,0.304054,23724.0,23722.0,0.210678]
[1659238394790,0.134308,23725.0,23722.0,0.210678]
[1659238395011,0.304054,23724.0,23722.0,0.260678]
[1659238395219,0.055308,23725.0,23722.0,0.260678]
[1659238395441,0.05,23724.0,23722.0,0.2829325]
[1659238395698,0.354054,23724.0,23722.0,0.560678]
[1659238395920,0.05,23724.0,23722.0,0.510678]
[1659238396126,0.304054,23724.0,23722.0,0.510678]
[1659238396334,0.079,23724.0,23722.0,0.5329325]
[1659238396568,0.383054,23724.0,23722.0,0.5829325]
[1659238396780,0.055308,23723.0,23722.0,0.5829325]
[1659238397002,0.079,23724.0,23722.0,0.5829325]
[1659238397450,0.134308,23724.0,23723.0,0.45725733]
[1659238397701,0.00098,23726.0,23723.0,0.45725733]
[1659238397702,0.00098,23726.0,23723.0,1.36131133]
[1659238397925,0.00098,23726.0,23725.0,0.4222545]
[1659238398155,0.00098,23726.0,23725.0,1.44012583]
[1659238398379,0.00098,23726.0,23725.0,1.45276931]
[1659238398823,0.00098,23726.0,23725.0,1.40682331]
[1659238399051,0.00098,23726.0,23725.0,0.99417983]
[1659238399289,0.00098,23726.0,23725.0,0.64012583]
[1659238400003,0.00798,23726.0,23725.0,0.64012583]
[1659238400240,0.05243,23726.0,23723.0,0.0222545]
[1659238400455,0.00798,23726.0,23723.0,0.42951183]
[1659238401135,0.00798,23726.0,23723.0,0.40725733]
[1659238401822,0.00098,23726.0,23724.0,0.0222545]
[1659238402071,0.08098,23726.0,23724.0,0.0222545]
[1659238402290,0.08098,23726.0,23723.0,0.40725733]
[1659238402509,0.08098,23726.0,23723.0,0.42951183]
[1659238402964,0.11598884,23726.0,23723.0,0.42951183]
[1659238403185,0.05,23725.0,23723.0,0.42951183]
[1659238403443,0.00098,23726.0,23723.0,0.42951183]
[1659238403935,0.08,23725.0,23723.0,0.64018183]
[1659238404607,0.08,23725.0,23723.0,0.69018183]
[1659238404827,0.08,23725.0,23723.0,0.71792733]
[1659238405317,0.03500884,23725.0,23723.0,0.74018183]
[1659238405535,0.00098,23726.0,23723.0,0.64018183]
[1659238405750,0.00098,23726.0,23723.0,0.21067]
[1659238405976,0.08,23725.0,23723.0,0.21067]
[1659238407049,0.08,23725.0,23723.0,0.26067]
[1659238407258,0.00098,23726.0,23723.0,0.681981]
[1659238407485,0.00098,23726.0,23723.0,0.731981]
[1659238407913,0.08098,23726.0,23723.0,0.731981]
[1659238408129,0.08098,23726.0,23723.0,0.681981]
[1659238408348,0.08098,23726.0,23725.0,0.0222545]
[1659238409243,0.00098,23726.0,23725.0,0.0222545]
[1659238409965,0.08098,23726.0,23725.0,0.0222545]
[1659238410181,0.08086296,23726.0,23725.0,0.0222545]
[1659238411274,0.00086296,23726.0,23725.0,0.0222545]
[1659238411954,0.08086296,23726.0,23725.0,0.0222545]
[1659238413105,0.08086296,23726.0,23725.0,0.47951183]
[1659238413324,0.00086296,23726.0,23725.0,1.14620931]
[1659238414019,0.06886296,23726.0,23725.0,1.15620931]
[1659238415226,0.00086296,23726.0,23725.0,1.12395481]
[1659238415438,0.00086296,23726.0,23725.0,1.14620931]
[1659238416123,0.06986296,23726.0,23725.0,1.13495481]
[1659238416800,0.06986296,23726.0,23725.0,1.15720931]
[1659238417065,0.06986296,23726.0,23725.0,1.45720931]
[1659238417326,0.06986296,23726.0,23725.0,1.46977399]
[1659238417536,0.06986296,23726.0,23725.0,1.21977399]
[1659238417748,0.00086296,23726.0,23725.0,1.20877399]
[1659238417969,0.00086296,23726.0,23725.0,1.24077399]
[1659238419347,0.00086296,23726.0,23725.0,1.20877399]
[1659238419555,0.00086296,23726.0,23725.0,1.19613051]
[1659238419827,0.00086296,23726.0,23725.0,1.17387601]
[1659238419998,0.00086296,23726.0,23725.0,1.22913051]
[1659238420442,0.00086296,23726.0,23725.0,1.20687601]
[1659238421344,0.00086296,23726.0,23725.0,1.18651949]
[1659238421762,0.00086296,23726.0,23725.0,1.20877399]
[1659238421977,0.00086296,23726.0,23725.0,1.25477399]
[1659238422209,0.00086296,23726.0,23725.0,1.23251949]
[1659238422468,0.00086296,23726.0,23725.0,1.25477399]
[1659238422669,0.00086296,23726.0,23725.0,1.23251949]
[1659238422887,0.00086296,23726.0,23725.0,1.23264651]
[1659238423334,0.00086296,23726.0,23725.0,1.18664651]
[1659238423550,0.00086296,23726.0,23725.0,1.20890101]
[1659238423980,0.00086296,23726.0,23725.0,1.25490101]
[1659238424640,0.00086296,23726.0,23725.0,1.20490101]
[1659238424853,0.00086296,23726.0,23725.0,1.18264651]
[1659238425348,0.00086296,23726.0,23725.0,1.13664651]
[1659238426019,0.00086296,23726.0,23725.0,1.18264651]
[1659238426472,0.00086296,23726.0,23725.0,1.20490101]
[1659238426716,0.00086296,23726.0,23725.0,1.18264651]
[1659238427383,0.00086296,23726.0,23725.0,1.20490101]
[1659238427818,0.00086296,23726.0,23725.0,1.15890101]
[1659238428030,0.00086296,23726.0,23725.0,1.20490101]
[1659238428466,0.00086296,23726.0,23725.0,1.18264651]
[1659238429120,0.00086296,23726.0,23725.0,1.20490101]
[1659238429342,0.00086296,23726.0,23725.0,1.13664651]